fUSD/lending_fUSD_20241101
["ID","MTS","AMOUNT","RATE_DAILY","PERIOD"]
[341129968,1730443846249,-549.9711057,0.00041095,3]
[341129969,1730443846258,-684.02,0.00041095,3]
[341129970,1730443846268,-500.0,0.00041095,3]
[341129971,1730443846278,-896.68,0.00041095,3]
[341129972,1730443846287,-500.0,0.00041095,3]
[341129973,1730443846296,-1924.11,0.00041095,3]
[341129974,1730443846306,-500.0,0.00041095,3]
[341129975,1730443846314,-500.0,0.00041095,3]
[341129976,1730443846324,-590.13,0.00041095,3]
[341129977,1730443846333,-500.0,0.00041095,3]
[341129978,1730443846343,-172.93885099,0.00041095,3]
[341129979,1730443846353,-515.9753407,0.00041095,3]
[341129980,1730443846363,-6093.46,0.00041095,3]
[341129981,1730443846372,-500.0,0.00041095,3]
[341129982,1730443846382,-537.99502771,0.00041095,3]
[341129983,1730443846391,-500.0,0.00041095,3]
[341129984,1730443846401,-500.0,0.00041095,3]
[341129985,1730443846411,-500.0,0.00041095,3]
[341129986,1730443846420,-500.0,0.00041095,3]
[341129987,1730443846430,-500.0,0.00041095,3]
[341129988,1730443846439,-500.0,0.00041095,3]
[341129989,1730443846449,-500.0,0.00041095,3]
[341129990,1730443846458,-991.63,0.00041095,3]
[341129991,1730443846468,-1166.7,0.00041095,3]
[341129992,1730443846477,-500.0,0.00041095,3]
[341129993,1730443846486,-519.79,0.00041095,3]
[341129994,1730443846496,-602.38023653,0.00041095,3]
[341129995,1730443846505,-500.0,0.00041095,3]
[341129996,1730443846516,-518.57560051,0.00041095,3]
[341129997,1730443846526,-500.0,0.00041095,3]
[341129998,1730443846536,-500.0,0.00041095,3]
[341129999,1730443846545,-500.0,0.00041095,3]
[341130000,1730443846556,-515.4282223,0.00041095,3]
[341130001,1730443846566,-637.95,0.00041095,3]
[341130002,1730443846575,-500.0,0.00041095,3]
[341130003,1730443846585,-500.0,0.00041095,3]
[341130004,1730443846594,-3425.26,0.00041095,3]
[341130005,1730443846603,-500.0,0.00041095,3]
[341130006,1730443846612,-1077.59,0.00041095,3]
[341130007,1730443846622,-1037.65,0.00041095,3]
[341130008,1730443846631,-917.08,0.00041095,3]
[341130009,1730443846641,-500.0,0.00041095,3]
[341130010,1730443846651,-2109.28512777,0.00041095,30]
[341130011,1730443846660,-500.0,0.00041095,3]
[341130012,1730443846670,-512.32,0.00041095,3]
[341130013,1730443846679,-505.60089098,0.00041095,3]
[341130014,1730443846689,-1169.34,0.00041095,3]
[341130015,1730443846698,-513.32705428,0.00041095,3]
[341130016,1730443846707,-527.35707505,0.00041095,3]
[341130017,1730443846716,-3734.58,0.00041095,3]
[341130018,1730443846726,-538.92,0.00041095,3]
[341130019,1730443846736,-500.0,0.00041095,3]
[341130020,1730443846745,-500.0,0.00041095,3]
[341130021,1730443846755,-500.0,0.00041095,3]
[341130022,1730443846765,-539.21628959,0.00041095,3]
[341130023,1730443846774,-376.6927909,0.00041095,3]
[341130024,1730443846784,-564.09,0.00041095,3]
[341130025,1730443846794,-500.0,0.00041095,3]
[341130026,1730443846803,-1183.88,0.00041095,3]
[341130027,1730443846813,-535.44577964,0.00041095,3]
[341130028,1730443846895,-500.0,0.00041095,3]
[341130029,1730443846904,-505.0464615,0.00041095,3]
[341130030,1730443846914,-321.58894093,0.00041095,3]
[341130031,1730443846923,-500.0,0.00041095,3]
[341130032,1730443846933,-514.03143181,0.00041095,3]
[341130033,1730443846942,-500.0,0.00041095,3]
[341130034,1730443846952,-500.0,0.00041095,3]
[341130035,1730443846961,-849.69,0.00041095,3]
[341130036,1730443846971,-500.0,0.00041095,3]
[341130037,1730443846981,-2295.26,0.00041095,3]
[341130038,1730443846990,-500.0,0.00041095,3]
[341130039,1730443847000,-180.18303585,0.00041095,3]
[341130040,1730443847009,-820.78,0.00041095,3]
[341130041,1730443847019,-500.0,0.00041095,3]
[341130042,1730443847028,-500.0,0.00041095,3]
[341130043,1730443847037,-500.0,0.00041095,3]
[341130044,1730443847047,-500.0,0.00041095,3]
[341130045,1730443847056,-258.71508974,0.00041095,3]
[341130046,1730443847065,-500.0,0.00041095,3]
[341130047,1730443847075,-500.0,0.00041095,3]
[341130048,1730443847085,-500.0,0.00041095,3]
[341130049,1730443847094,-157.78983625,0.00041095,2]
[341130050,1730443847104,-520.0023059,0.00041095,3]
[341130051,1730443847113,-531.15766144,0.00041095,3]
[341130052,1730443847123,-500.0,0.00041095,3]
[341130053,1730443847133,-500.0,0.00041095,3]
[341130054,1730443847144,-938.58,0.00041095,3]
[341130055,1730443847154,-1060.6,0.00041095,3]
[341130056,1730443847163,-952.24,0.00041095,3]
[341130057,1730443847173,-162.52243,0.00041095,3]
[341130058,1730443847185,-1825.26,0.00041095,3]
[341130059,1730443847195,-500.0,0.00041095,30]
[341130060,1730443847204,-500.0,0.00041095,3]
[341130061,1730443847213,-511.42913857,0.00041095,3]
[341130062,1730443847223,-500.0,0.00041095,3]
[341130063,1730443847232,-160.475999,0.00041095,3]
[341130064,1730443847242,-500.0,0.00041095,3]
[341130065,1730443847252,-500.0,0.00041095,3]
[341130066,1730443847262,-532.34113233,0.00041095,3]
[341130067,1730443847271,-500.0,0.00041095,3]
[341130068,1730443847281,-500.0,0.00041095,3]
[341130069,1730443847290,-500.0,0.00041095,3]
[341130070,1730443847299,-540.02275238,0.00041095,3]
[341130071,1730443847309,-514.24781346,0.00041095,3]
[341130072,1730443847319,-500.0,0.00041095,3]
[341130073,1730443847327,-521.44767667,0.00041095,3]
[341130074,1730443847336,-1002.71,0.00041095,3]
[341130075,1730443847346,-506.85491816,0.00041095,3]
[341130076,1730443847357,-505.70836375,0.00041095,3]
[341130077,1730443847366,-1426.18,0.00041095,3]
[341130078,1730443847375,-330.51469654,0.00041095,3]
[341130079,1730443847385,-500.0,0.00041095,3]
[341130080,1730443847394,-500.0,0.00041095,3]
[341130081,1730443847403,-484.64479174,0.00041095,3]
[341130082,1730443847412,-500.0,0.00041095,3]
[341130083,1730443847422,-512.79105173,0.00041095,3]
[341130084,1730443847431,-500.0,0.00041095,3]
[341130085,1730443847441,-563.34090528,0.00041095,3]
[341130086,1730443847450,-500.0,0.00041095,3]
[341130087,1730443847459,-500.0,0.00041095,3]
[341130088,1730443847469,-1156.72,0.00041095,3]
[341130089,1730443847478,-500.0,0.00041095,3]
[341130090,1730443847487,-500.0,0.00041095,3]
[341130091,1730443847496,-150.0,0.00041096,2]
[341130092,1730443847506,-568.94160107,0.00041132,2]
[341130093,1730443847520,-150.0,0.00041207,2]
[341130094,1730443847529,-568.94160107,0.00041269,2]
[341130095,1730443847538,-2144.82,0.00041282,2]
[341130096,1730443847547,-509.47066604,0.00041369,3]
[341130097,1730443847557,-508.75976231,0.00041369,3]
[341130098,1730443847566,-611.87398734,0.00041369,3]
[341130099,1730443847575,-500.0,0.00041369,3]
[341130100,1730443847584,-534.46530481,0.00041369,3]
[341130101,1730443847594,-194.57661893,0.00041369,3]
[341130102,1730443847605,-500.0,0.00041369,3]
[341130103,1730443847614,-500.0,0.00041369,3]
[341130104,1730443847624,-500.0,0.00041369,3]
[341130105,1730443847634,-500.0,0.00041369,3]
[341130106,1730443847643,-151.2258032,0.00041369,3]
[341130107,1730443847652,-196.428532,0.00041369,3]
[341130108,1730443847662,-500.0,0.00041369,3]
[341130109,1730443847671,-500.0,0.00041369,3]
[341130110,1730443847681,-595.0884824,0.00041369,3]
[341130111,1730443847690,-500.0,0.00041369,3]
[341130112,1730443847700,-500.0,0.00041369,3]
[341130113,1730443847709,-500.0,0.00041369,3]
[341130114,1730443847718,-500.0,0.00041369,3]
[341130115,1730443847728,-500.0,0.00041369,3]
[341130116,1730443847736,-500.0,0.00041369,3]
[341130117,1730443847746,-500.0,0.00041369,3]
[341130118,1730443847756,-632.73,0.00041369,3]
[341130119,1730443847766,-500.0,0.00041369,3]
[341130120,1730443847776,-500.0,0.00041369,3]
[341130121,1730443847785,-500.0,0.00041369,3]
[341130122,1730443847795,-500.0,0.00041369,3]
[341130123,1730443847804,-500.0,0.00041369,3]
[341130124,1730443847813,-350.17120819,0.00041369,3]
[341130125,1730443847823,-500.0,0.00041369,3]
[341130126,1730443847833,-161.91853,0.00041369,3]
[341130127,1730443847842,-500.0,0.00041369,3]
[341130128,1730443847854,-546.23,0.00041369,3]
[341130129,1730443847867,-500.0,0.00041369,3]
[341130130,1730443847877,-500.0,0.00041369,3]
[341130131,1730443847887,-500.0,0.00041369,3]
[341130132,1730443847896,-500.0,0.00041369,3]
[341130133,1730443847906,-255.01776342,0.00041369,3]
[341130134,1730443847916,-500.0,0.00041369,3]
[341130135,1730443847926,-500.0,0.00041369,3]
[341130136,1730443847936,-500.0,0.00041369,3]
[341130137,1730443847946,-500.0,0.00041369,3]
[341130138,1730443847955,-500.0,0.00041369,3]
[341130139,1730443847966,-500.0,0.00041369,3]
[341130140,1730443847975,-500.0,0.00041369,3]
[341130141,1730443847984,-500.0,0.00041369,3]
[341130142,1730443847994,-500.0,0.00041369,3]
[341130143,1730443848004,-629.73,0.00041369,3]
[341130144,1730443848014,-500.0,0.00041369,3]
[341130145,1730443848023,-170.84717226,0.00041369,3]
[341130146,1730443848033,-500.0,0.00041369,3]
[341130147,1730443848042,-500.0,0.00041369,3]
[341130148,1730443848052,-284.00138063,0.00041369,3]
[341130149,1730443848061,-581.64277316,0.00041369,3]
[341130150,1730443848071,-500.0,0.00041369,3]
[341130151,1730443848080,-500.0,0.00041369,3]
[341130152,1730443848090,-568.92668469,0.00041369,3]
[341130153,1730443848105,-1521.32,0.00041369,3]
[341130154,1730443848115,-927.66,0.00041369,3]
[341130155,1730443848124,-500.0,0.00041369,3]
[341130156,1730443848208,-500.0,0.00041369,3]
[341130157,1730443848219,-500.0,0.00041369,3]
[341130158,1730443848228,-500.0,0.00041369,3]
[341130159,1730443848239,-500.0,0.00041369,3]
[341130160,1730443848249,-807.66,0.00041369,3]
[341130161,1730443848259,-500.0,0.00041369,3]
[341130162,1730443848269,-500.0,0.00041369,3]
[341130163,1730443848278,-500.0,0.00041369,3]
[341130164,1730443848288,-500.0,0.00041369,3]
[341130165,1730443848297,-500.0,0.00041369,3]
[341130166,1730443848306,-595.45889141,0.00041369,3]
[341130167,1730443848316,-500.0,0.00041369,3]
[341130168,1730443848325,-500.0,0.00041369,3]
[341130169,1730443848335,-500.0,0.00041369,3]
[341130170,1730443848344,-500.0,0.00041369,3]
[341130171,1730443848357,-500.0,0.00041369,3]
[341130172,1730443848367,-437.68999005,0.00041369,3]
[341130173,1730443848376,-500.0,0.00041369,3]
[341130174,1730443848386,-500.0,0.00041369,3]
[341130175,1730443848395,-911.42,0.00041369,3]
[341130176,1730443848404,-500.0,0.00041369,3]
[341130177,1730443848414,-556.61449302,0.00041369,3]
[341130178,1730443848423,-500.0,0.00041369,3]
[341130179,1730443848433,-500.0,0.00041369,3]
[341130180,1730443848442,-500.0,0.00041369,3]
[341130181,1730443848452,-500.0,0.00041369,3]
[341130182,1730443848462,-522.47530234,0.00041369,3]
[341130183,1730443848471,-500.0,0.00041369,3]
[341130184,1730443848481,-500.0,0.00041369,3]
[341130185,1730443848491,-500.0,0.00041369,3]
[341130186,1730443848500,-500.0,0.00041369,3]
[341130187,1730443848511,-1135.44,0.00041369,3]
[341130188,1730443848521,-513.46,0.00041369,3]
[341130189,1730443848531,-500.0,0.00041369,3]
[341130190,1730443848541,-528.28427371,0.00041369,3]
[341130191,1730443848550,-602.66,0.00041369,3]
[341130192,1730443848560,-500.0,0.00041369,3]
[341130193,1730443848569,-554.27159614,0.00041369,3]
[341130194,1730443848579,-502.9023294,0.00041369,3]
[341130195,1730443848589,-516.76956084,0.00041369,3]
[341130196,1730443848602,-500.0,0.00041369,3]
[341130197,1730443848611,-500.0,0.00041369,3]
[341130198,1730443848621,-500.0,0.00041369,3]
[341130199,1730443848631,-500.0,0.00041369,3]
[341130200,1730443848639,-1204.51,0.00041369,3]
[341130201,1730443848649,-500.0,0.00041369,3]
[341130202,1730443848658,-526.92095051,0.00041369,3]
[341130203,1730443848668,-500.0,0.00041369,3]
[341130204,1730443848677,-500.0,0.00041369,3]
[341130205,1730443848686,-500.0,0.00041369,3]
[341130206,1730443848695,-500.0,0.00041369,3]
[341130207,1730443848704,-733.63,0.00041369,3]
[341130208,1730443848714,-500.0,0.00041369,3]
[341130209,1730443848723,-510.48075516,0.00041369,3]
[341130210,1730443848733,-1729.16,0.00041369,3]
[341130211,1730443848742,-500.0,0.00041369,3]
[341130212,1730443848751,-500.0,0.00041369,3]
[341130213,1730443848761,-608.65607788,0.00041369,3]
[341130214,1730443848770,-500.0,0.00041369,3]
[341130215,1730443848780,-500.0,0.00041369,3]
[341130216,1730443848789,-500.0,0.00041369,3]
[341130217,1730443848799,-510.22740732,0.00041369,3]
[341130218,1730443848808,-1247.5,0.00041369,3]
[341130219,1730443848818,-500.0,0.00041369,3]
[341130220,1730443848827,-507.99439123,0.00041369,3]
[341130221,1730443848837,-500.0,0.00041369,3]
[341130222,1730443848848,-271.68796493,0.00041369,3]
[341130223,1730443848857,-500.0,0.00041369,3]
[341130224,1730443848866,-500.0,0.00041369,3]
[341130225,1730443848876,-158.87599799,0.00041369,3]
[341130226,1730443848885,-500.0,0.00041369,3]
[341130227,1730443848894,-500.0,0.00041369,3]
[341130228,1730443848904,-500.0,0.00041369,3]
[341130229,1730443848913,-500.0,0.00041369,3]
[341130230,1730443848923,-500.0,0.00041369,3]
[341130231,1730443848932,-500.0,0.00041369,3]
[341130232,1730443848941,-500.0,0.00041369,3]
[341130233,1730443848951,-500.0,0.00041369,3]
[341130234,1730443848961,-500.0,0.00041369,3]
[341130235,1730443848971,-500.0,0.00041369,3]
[341130236,1730443848980,-500.0,0.00041369,3]
[341130237,1730443848990,-500.0,0.00041369,3]
[341130238,1730443848999,-500.0,0.00041369,3]
[341130239,1730443849008,-500.0,0.00041369,3]
[341130240,1730443849019,-500.0,0.00041369,3]
[341130241,1730443849028,-367.73,0.00041369,3]
[341130242,1730443849038,-500.0,0.00041369,3]
[341130243,1730443849047,-599.51,0.00041369,3]
[341130244,1730443849057,-352.6044715,0.00041369,3]
[341130245,1730443849066,-500.0,0.00041369,3]
[341130246,1730443849076,-500.0,0.00041369,3]
[341130247,1730443849086,-343.14200611,0.00041369,3]
[341130248,1730443849097,-500.0,0.00041369,3]
[341130249,1730443849108,-500.0,0.00041369,3]
[341130250,1730443849117,-500.0,0.00041369,3]
[341130251,1730443849126,-2000.0,0.00041369,3]
[341130252,1730443849135,-500.0,0.00041369,3]
[341130253,1730443849145,-500.0,0.00041369,2]
[341130254,1730443849154,-500.0,0.00041369,3]
[341130255,1730443849163,-500.0,0.00041369,3]
[341130256,1730443849172,-500.0,0.00041369,3]
[341130257,1730443849182,-686.96,0.00041369,3]
[341130258,1730443849191,-1791.21,0.00041369,3]
[341130259,1730443849200,-500.0,0.00041369,3]
[341130260,1730443849209,-500.0,0.00041369,3]
[341130261,1730443849218,-264.96728068,0.00041369,3]
[341130262,1730443849228,-200.0,0.00041369,3]
[341130263,1730443849237,-509.71712087,0.00041369,3]
[341130264,1730443849246,-1863.29,0.00041369,3]
[341130265,1730443849255,-543.54,0.00041369,3]
[341130266,1730443849265,-500.0,0.00041369,3]
[341130267,1730443849274,-500.0,0.00041369,3]
[341130268,1730443849283,-500.0,0.00041369,3]
[341130269,1730443849292,-520.63,0.00041369,3]
[341130270,1730443849301,-500.0,0.00041369,3]
[341130271,1730443849311,-500.0,0.00041369,3]
[341130272,1730443849320,-500.0,0.00041369,3]
[341130273,1730443849399,-500.0,0.00041369,3]
[341130274,1730443849409,-1469.71,0.00041369,3]
[341130275,1730443849419,-500.0,0.00041369,3]
[341130276,1730443849429,-500.0,0.00041369,3]
[341130277,1730443849438,-500.0,0.00041369,3]
[341130278,1730443849448,-500.0,0.00041369,3]
[341130279,1730443849457,-400.570572,0.00041369,3]
[341130280,1730443849468,-2131.83,0.00041369,3]
[341130281,1730443849478,-500.0,0.00041369,3]
[341130282,1730443849487,-500.0,0.00041369,3]
[341130283,1730443849498,-500.0,0.00041369,3]
[341130284,1730443849508,-636.71,0.00041369,3]
[341130285,1730443849520,-410.93913965,0.00041369,3]
[341130286,1730443849530,-500.0,0.00041369,3]
[341130287,1730443849540,-500.0,0.00041369,3]
[341130288,1730443849550,-684.02,0.00041369,3]
[341130289,1730443849559,-500.0,0.00041369,3]
[341130290,1730443849569,-896.68,0.00041369,3]
[341130291,1730443849578,-500.0,0.00041369,3]
[341130292,1730443849588,-1924.11,0.00041369,3]
[341130293,1730443849600,-500.0,0.00041369,3]
[341130294,1730443849609,-500.0,0.00041369,3]
[341130295,1730443849618,-590.13,0.00041369,3]
[341130296,1730443849627,-507.46687921,0.00041369,3]
[341130297,1730443849636,-6093.46,0.00041369,3]
[341130298,1730443849646,-500.0,0.00041369,3]
[341130299,1730443849655,-500.0,0.00041369,3]
[341130300,1730443849664,-269.59326602,0.00041369,3]
[341130301,1730443849674,-582.71468654,0.00041369,3]
[341130302,1730443849685,-500.0,0.00041369,3]
[341130303,1730443849695,-622.93574333,0.00041369,3]
[341130304,1730443849704,-462.40974682,0.00041369,3]
[341130305,1730443849714,-500.0,0.00041369,3]
[341130306,1730443849724,-991.63,0.00041369,3]
[341130307,1730443849734,-1166.7,0.00041369,3]
[341130308,1730443849744,-500.0,0.00041369,3]
[341130309,1730443849754,-519.79,0.00041369,3]
[341130310,1730443849763,-500.0,0.00041369,3]
[341130311,1730443849773,-539.15636292,0.00041369,3]
[341130312,1730443849783,-282.45824507,0.00041369,3]
[341130313,1730443849793,-500.0,0.00041369,3]
[341130314,1730443849802,-637.95,0.00041369,3]
[341130315,1730443849812,-500.0,0.00041369,3]
[341130316,1730443849821,-500.0,0.00041369,3]
[341130317,1730443849831,-3425.26,0.00041369,3]
[341130318,1730443849840,-500.0,0.00041369,3]
[341130319,1730443849851,-1077.59,0.00041369,3]
[341130320,1730443849861,-1037.65,0.00041369,3]
[341130321,1730443849870,-917.08,0.00041369,3]
[341130322,1730443849879,-262.67723195,0.00041369,3]
[341130323,1730443849888,-546.16070048,0.00041369,3]
[341130324,1730443849898,-512.32,0.00041369,3]
[341130325,1730443849907,-1169.34,0.00041369,3]
[341130326,1730443849916,-3734.58,0.00041369,3]
[341130327,1730443849926,-538.92,0.00041369,3]
[341130328,1730443849935,-500.0,0.00041369,3]
[341130329,1730443849944,-500.0,0.00041369,3]
[341130330,1730443849954,-462.68284365,0.00041369,3]
[341130331,1730443849963,-564.09,0.00041369,3]
[341130332,1730443849972,-500.0,0.00041369,3]
[341130333,1730443849981,-1183.88,0.00041369,3]
[341130334,1730443849990,-500.0,0.00041369,3]
[341130335,1730443849999,-500.0,0.00041369,3]
[341130336,1730443850008,-500.0,0.00041369,3]
[341130337,1730443850017,-500.0,0.00041369,3]
[341130338,1730443850027,-849.69,0.00041369,3]
[341130339,1730443850037,-500.0,0.00041369,3]
[341130340,1730443850047,-2295.26,0.00041369,3]
[341130341,1730443850056,-500.0,0.00041369,3]
[341130342,1730443850065,-820.78,0.00041369,3]
[341130343,1730443850074,-500.0,0.00041369,3]
[341130344,1730443850083,-500.0,0.00041369,3]
[341130345,1730443850092,-500.0,0.00041369,3]
[341130346,1730443850105,-500.0,0.00041369,3]
[341130347,1730443850114,-500.0,0.00041369,3]
[341130348,1730443850123,-500.0,0.00041369,3]
[341130349,1730443850132,-500.0,0.00041369,3]
[341130350,1730443850141,-500.0,0.00041369,3]
[341130351,1730443850150,-500.0,0.00041369,3]
[341130352,1730443850159,-938.58,0.00041369,3]
[341130353,1730443850168,-1060.6,0.00041369,3]
[341130354,1730443850177,-952.24,0.00041369,3]
[341130355,1730443850186,-1825.26,0.00041369,3]
[341130356,1730443850195,-260.23379183,0.00041369,30]
[341130357,1730443850205,-500.0,0.00041369,3]
[341130358,1730443850214,-500.0,0.00041369,3]
[341130359,1730443850223,-500.0,0.00041369,3]
[341130360,1730443850232,-500.0,0.00041369,3]
[341130361,1730443850241,-500.0,0.00041369,3]
[341130362,1730443850250,-500.0,0.00041369,3]
[341130363,1730443850259,-500.0,0.00041369,3]
[341130364,1730443850268,-500.0,0.00041369,3]
[341130365,1730443850277,-1002.71,0.00041369,3]
[341130366,1730443850287,-1426.18,0.00041369,3]
[341130367,1730443850296,-500.0,0.00041369,3]
[341130368,1730443850307,-500.0,0.00041369,3]
[341130369,1730443850319,-500.52931084,0.00041369,3]
[341130370,1730443850329,-500.0,0.00041369,3]
[341130371,1730443850338,-500.0,0.00041369,3]
[341130372,1730443850348,-500.0,0.00041369,3]
[341130373,1730443850357,-1156.72,0.00041369,3]
[341130374,1730443850367,-500.0,0.00041369,3]
[341130375,1730443850375,-254.64573741,0.00041369,3]
[341130376,1730443850385,-151.5,0.00041428,2]
[341130377,1730443850394,-3676.26,0.00041496,2]
[341130378,1730443850405,-500.0,0.00041548,10]
[341130379,1730443850415,-500.0,0.00041548,10]
[341130380,1730443850424,-500.0,0.00041548,10]
[341130381,1730443850433,-150.0,0.00041619,2]
[341130382,1730443850505,-400.0,0.00041642,10]
[341130383,1730443850517,-400.0,0.00041642,10]
[341130384,1730443850527,-400.0,0.00041642,10]
[341130385,1730443850536,-400.0,0.00041642,10]
[341130386,1730443850545,-500.0,0.00041643,3]
[341130387,1730443850556,-500.0,0.00041643,3]
[341130388,1730443850565,-581.5,0.00041643,3]
[341130389,1730443850576,-500.0,0.00041643,3]
[341130390,1730443850587,-500.0,0.00041643,3]
[341130391,1730443850598,-562.46359782,0.00041643,3]
[341130392,1730443850607,-500.0,0.00041643,3]
[341130393,1730443850616,-500.0,0.00041643,3]
[341130394,1730443850626,-500.0,0.00041643,3]
[341130395,1730443850635,-500.0,0.00041643,3]
[341130396,1730443850645,-500.0,0.00041643,3]
[341130397,1730443850655,-500.0,0.00041643,3]
[341130398,1730443850666,-500.0,0.00041643,3]
[341130399,1730443850676,-500.0,0.00041643,3]
[341130400,1730443850687,-632.73,0.00041643,3]
[341130401,1730443850698,-500.0,0.00041643,3]
[341130402,1730443850708,-509.3958216,0.00041643,3]
[341130403,1730443850718,-500.0,0.00041643,3]
[341130404,1730443850727,-526.19523641,0.00041643,3]
[341130405,1730443850737,-166.43132979,0.00041643,3]
[341130406,1730443850747,-500.0,0.00041643,3]
[341130407,1730443850757,-522.02827891,0.00041643,3]
[341130408,1730443850769,-546.23,0.00041643,3]
[341130409,1730443850779,-500.0,0.00041643,3]
[341130410,1730443850788,-362.82961546,0.00041643,3]
[341130411,1730443850797,-500.0,0.00041643,3]
[341130412,1730443850807,-500.0,0.00041643,3]
[341130413,1730443850816,-500.0,0.00041643,3]
[341130414,1730443850826,-200.44041485,0.00041643,3]
[341130415,1730443850835,-500.0,0.00041643,3]
[341130416,1730443850845,-263.2830669,0.00041643,3]
[341130417,1730443850855,-500.0,0.00041643,3]
[341130418,1730443850864,-500.0,0.00041643,3]
[341130419,1730443850873,-500.0,0.00041643,3]
[341130420,1730443850883,-500.0,0.00041643,3]
[341130421,1730443850893,-632.81855534,0.00041643,3]
[341130422,1730443850904,-629.73,0.00041643,3]
[341130423,1730443850916,-625.74752078,0.00041643,3]
[341130424,1730443850926,-500.0,0.00041643,3]
[341130425,1730443850936,-500.0,0.00041643,3]
[341130426,1730443850946,-500.0,0.00041643,3]
[341130427,1730443850956,-500.0,0.00041643,3]
[341130428,1730443850966,-1521.32,0.00041643,3]
[341130429,1730443850976,-927.66,0.00041643,3]
[341130430,1730443850987,-500.0,0.00041643,3]
[341130431,1730443850996,-336.68831282,0.00041643,3]
[341130432,1730443851006,-500.0,0.00041643,3]
[341130433,1730443851021,-500.0,0.00041643,3]
[341130434,1730443851038,-482.53730959,0.00041643,3]
[341130435,1730443851058,-807.66,0.00041643,3]
[341130436,1730443851076,-500.0,0.00041643,3]
[341130437,1730443851096,-500.0,0.00041643,3]
[341130438,1730443851111,-500.0,0.00041643,3]
[341130439,1730443851128,-500.0,0.00041643,3]
[341130440,1730443851142,-566.54025576,0.00041643,3]
[341130441,1730443851158,-500.0,0.00041643,3]
[341130442,1730443851175,-495.69650722,0.00041643,3]
[341130443,1730443851195,-500.0,0.00041643,3]
[341130444,1730443851207,-500.0,0.00041643,3]
[341130445,1730443851222,-200.3104944,0.00041643,3]
[341130446,1730443851237,-500.0,0.00041643,3]
[341130447,1730443851253,-500.0,0.00041643,3]
[341130448,1730443851267,-911.42,0.00041643,3]
[341130449,1730443851281,-406.29233819,0.00041643,3]
[341130450,1730443851295,-500.0,0.00041643,3]
[341130451,1730443851309,-500.0,0.00041643,3]
[341130452,1730443851323,-500.0,0.00041643,3]
[341130453,1730443851337,-540.68510457,0.00041643,3]
[341130454,1730443851352,-500.0,0.00041643,3]
[341130455,1730443851365,-500.0,0.00041643,3]
[341130456,1730443851380,-500.0,0.00041643,3]
[341130457,1730443851395,-500.0,0.00041643,3]
[341130458,1730443851408,-1135.44,0.00041643,3]
[341130459,1730443851422,-513.46,0.00041643,3]
[341130460,1730443851437,-500.0,0.00041643,3]
[341130461,1730443851451,-602.66,0.00041643,3]
[341130462,1730443851465,-527.58836832,0.00041643,3]
[341130463,1730443851479,-500.0,0.00041643,3]
[341130464,1730443851494,-589.04854403,0.00041643,3]
[341130465,1730443851508,-599.26765785,0.00041643,3]
[341130466,1730443851524,-511.15352555,0.00041643,3]
[341130467,1730443851538,-1204.51,0.00041643,3]